[Event "*** Titled Tuesday Blitz"]
[Site "Chess.com"]
[Date "2021.04.06"]
[Round "5"]
[White "vinniethepooh"]
[Black "Genghis_K"]
[Result "0-1"]
[WhiteElo "2731"]
[BlackElo "2941"]
[TimeControl "180+1"]
[EndTime "10:56:35 PDT"]
[Termination "Genghis_K won by resignation"]

1. d4 {[%clk 0:03:00.9]} 1... Nf6 {[%clk 0:02:51.8]} 2. c4 {[%clk 0:03:01.2]}
2... g6 {[%clk 0:02:52.3]} 3. Nc3 {[%clk 0:03:01.6]} 3... Bg7 {[%clk 0:02:53]}
4. e4 {[%clk 0:03:01.8]} 4... d6 {[%clk 0:02:53.5]} 5. Be2 {[%clk 0:03:02.2]}
5... O-O {[%clk 0:02:53.9]} 6. Be3 {[%clk 0:03:02.8]} 6... c6 {[%clk 0:02:54.1]}
7. f4 {[%clk 0:03:02]} 7... c5 {[%clk 0:02:44.4]} 8. dxc5 {[%clk 0:02:53.1]}
8... Qa5 {[%clk 0:02:42.9]} 9. Qd2 {[%clk 0:02:32.3]} 9... dxc5 {[%clk
0:02:40.8]} 10. e5 {[%clk 0:02:30.8]} 10... Rd8 {[%clk 0:02:40.5]} 11. Qc2
{[%clk 0:01:57.7]} 11... Bf5 {[%clk 0:02:03.6]} 12. Qb3 {[%clk 0:01:57.2]} 12...
Ne4 {[%clk 0:02:02.3]} 13. Qb5 {[%clk 0:01:54.5]} 13... Nc6 {[%clk 0:01:59.8]}
14. Qxa5 {[%clk 0:01:16.6]} 14... Nxa5 {[%clk 0:02:00.7]} 15. Nd5 {[%clk
0:01:16.3]} 15... Nc6 {[%clk 0:01:55.7]} 16. g4 {[%clk 0:01:15.6]} 16... Bd7
{[%clk 0:01:49.8]} 17. Bf3 {[%clk 0:01:09.3]} 17... f5 {[%clk 0:01:49.6]} 18.
Ne2 {[%clk 0:00:30.8]} 18... e6 {[%clk 0:01:45.6]} 19. Ndc3 {[%clk 0:00:24.8]}
19... Nxc3 {[%clk 0:01:42]} 20. Nxc3 {[%clk 0:00:25.7]} 20... fxg4 {[%clk
0:01:42.4]} 21. Bxg4 {[%clk 0:00:26.6]} 21... Nd4 {[%clk 0:01:43]} 22. O-O-O
{[%clk 0:00:27.1]} 22... Bc6 {[%clk 0:01:36.9]} 23. Rhg1 {[%clk 0:00:27.6]}
23... Kf7 {[%clk 0:01:34.9]} 24. Bxd4 {[%clk 0:00:18.7]} 24... cxd4 {[%clk
0:01:34.1]} 25. Nb5 {[%clk 0:00:19.1]} 25... Bxb5 {[%clk 0:01:31]} 26. cxb5
{[%clk 0:00:20]} 26... Rac8+ {[%clk 0:01:31.7]} 27. Kb1 {[%clk 0:00:18.5]} 27...
d3 {[%clk 0:01:32.4]} 28. Rg3 {[%clk 0:00:15.4]} 28... Bh6 {[%clk 0:01:30.6]}
29. Rgxd3 {[%clk 0:00:13.8]} 29... Rxd3 {[%clk 0:01:28.9]} 30. Rxd3 {[%clk
0:00:14.7]} 30... Bxf4 {[%clk 0:01:29.3]} 31. Rd7+ {[%clk 0:00:06.9]} 31... Ke8
{[%clk 0:01:29.2]} 32. Rd1 {[%clk 0:00:07.8]} 32... Ke7 {[%clk 0:01:27.4]} 33.
a4 {[%clk 0:00:05.8]} 33... Bxe5 {[%clk 0:01:27.7]} 34. Re1 {[%clk 0:00:06.3]}
34... Rc5 {[%clk 0:01:28.2]} 35. b4 {[%clk 0:00:06.4]} 35... Rc4 {[%clk
0:01:27.5]} 36. Rxe5 {[%clk 0:00:04.2]} 36... Rxb4+ {[%clk 0:01:28.1]} 37. Kc2
{[%clk 0:00:04.3]} 37... Rxg4 {[%clk 0:01:28.7]} 38. Rc5 {[%clk 0:00:04.7]}
38... Kd6 {[%clk 0:01:28.1]} 39. Rc8 {[%clk 0:00:05.1]} 39... Rxa4 {[%clk
0:01:28.3]} 40. Rh8 {[%clk 0:00:05.5]} 40... Rh4 {[%clk 0:01:28.9]} 41. Rb8
{[%clk 0:00:05.1]} 41... b6 {[%clk 0:01:29.4]} 0-1

[Event "*** Titled Tuesday Blitz"]
[Site "Chess.com"]
[Date "2021.04.06"]
[Round "5"]
[White "gmgamil"]
[Black "Harry_Rakkel"]
[Result "1-0"]
[WhiteElo "2814"]
[BlackElo "2595"]
[TimeControl "180+1"]
[EndTime "10:56:36 PDT"]
[Termination "gmgamil won by resignation"]

1. d4 {[%clk 0:01:27.1]} 1... Nf6 {[%clk 0:02:58.7]} 2. Nc3 {[%clk 0:01:28]}
2... d5 {[%clk 0:02:57.6]} 3. Bg5 {[%clk 0:01:28.5]} 3... Nbd7 {[%clk
0:02:56.7]} 4. f3 {[%clk 0:01:28.9]} 4... e6 {[%clk 0:02:54.8]} 5. e4 {[%clk
0:01:28.7]} 5... Be7 {[%clk 0:02:54.1]} 6. e5 {[%clk 0:01:28.7]} 6... Ng8 {[%clk
0:02:53.6]} 7. Be3 {[%clk 0:01:29.2]} 7... b6 {[%clk 0:02:47.1]} 8. f4 {[%clk
0:01:28.7]} 8... g6 {[%clk 0:02:44.4]} 9. Nf3 {[%clk 0:01:28.9]} 9... c5 {[%clk
0:02:43.1]} 10. Ne2 {[%clk 0:01:24.3]} 10... Ba6 {[%clk 0:02:40.7]} 11. c3
{[%clk 0:01:23.8]} 11... Qc7 {[%clk 0:02:37.9]} 12. h3 {[%clk 0:01:22.3]} 12...
h5 {[%clk 0:02:37.6]} 13. Bf2 {[%clk 0:01:22.1]} 13... Qb7 {[%clk 0:02:24.4]}
14. a3 {[%clk 0:01:14.9]} 14... Bxe2 {[%clk 0:02:16.7]} 15. Bxe2 {[%clk
0:01:14]} 15... c4 {[%clk 0:02:16.7]} 16. b3 {[%clk 0:01:13.7]} 16... cxb3
{[%clk 0:02:09]} 17. Qxb3 {[%clk 0:01:14.6]} 17... Nh6 {[%clk 0:02:08.7]} 18. g4
{[%clk 0:01:13.6]} 18... hxg4 {[%clk 0:01:59.7]} 19. hxg4 {[%clk 0:01:14.5]}
19... O-O-O {[%clk 0:01:58.8]} 20. Rg1 {[%clk 0:01:15.1]} 20... Kb8 {[%clk
0:01:57.9]} 21. a4 {[%clk 0:01:15.4]} 21... Rc8 {[%clk 0:01:52]} 22. Kd2 {[%clk
0:01:14.6]} 22... Rc7 {[%clk 0:01:44.8]} 23. Ne1 {[%clk 0:01:05.5]} 23... Rhc8
{[%clk 0:01:43]} 24. Rc1 {[%clk 0:01:04.6]} 24... a5 {[%clk 0:01:37.7]} 25. Rh1
{[%clk 0:01:03.9]} 25... Rxc3 {[%clk 0:01:35.7]} 26. Rxc3 {[%clk 0:01:02.4]}
26... Bb4 {[%clk 0:01:35.5]} 27. Rh3 {[%clk 0:00:58.2]} 27... f6 {[%clk
0:01:24.3]} 28. Nc2 {[%clk 0:00:57.7]} 28... Bxc3+ {[%clk 0:01:22.4]} 29. Rxc3
{[%clk 0:00:58]} 29... fxe5 {[%clk 0:01:19.2]} 30. dxe5 {[%clk 0:00:57.5]} 30...
g5 {[%clk 0:01:07]} 31. Rxc8+ {[%clk 0:00:55.1]} 31... Kxc8 {[%clk 0:01:04.2]}
32. Qh3 {[%clk 0:00:48.4]} 32... Nf7 {[%clk 0:01:01.2]} 33. Qh7 {[%clk
0:00:48.4]} 33... Nc5 {[%clk 0:00:59.9]} 34. Bxc5 {[%clk 0:00:43.3]} 34... bxc5
{[%clk 0:01:00.8]} 35. fxg5 {[%clk 0:00:42.1]} 35... Qe7 {[%clk 0:00:54.4]} 36.
g6 {[%clk 0:00:41.1]} 36... Qg5+ {[%clk 0:00:54.5]} 37. Kd1 {[%clk 0:00:41.4]}
37... Nxe5 {[%clk 0:00:55.2]} 38. g7 {[%clk 0:00:40.5]} 1-0

[Event "*** Titled Tuesday Blitz"]
[Site "Chess.com"]
[Date "2021.04.06"]
[Round "5"]
[White "FGHSMN"]
[Black "fearless_guy"]
[Result "0-1"]
[WhiteElo "2579"]
[BlackElo "2789"]
[TimeControl "180+1"]
[EndTime "10:56:38 PDT"]
[Termination "fearless_guy won by resignation"]

1. e4 {[%clk 0:03:00.9]} 1... e6 {[%clk 0:02:58.9]} 2. d4 {[%clk 0:03:00.3]}
2... d5 {[%clk 0:02:59.5]} 3. Nc3 {[%clk 0:02:59.6]} 3... h6 {[%clk 0:02:58.7]}
4. Nf3 {[%clk 0:02:57.1]} 4... Nf6 {[%clk 0:02:58.6]} 5. Bd3 {[%clk 0:02:53.3]}
5... Bb4 {[%clk 0:02:57.6]} 6. exd5 {[%clk 0:02:41.1]} 6... exd5 {[%clk
0:02:58.5]} 7. O-O {[%clk 0:02:39.4]} 7... O-O {[%clk 0:02:57.8]} 8. a3 {[%clk
0:02:33.5]} 8... Bxc3 {[%clk 0:02:54.7]} 9. bxc3 {[%clk 0:02:34.4]} 9... Bg4
{[%clk 0:02:37.3]} 10. h3 {[%clk 0:02:30.4]} 10... Bh5 {[%clk 0:02:34]} 11. Bf4
{[%clk 0:02:24]} 11... Ne4 {[%clk 0:02:15.3]} 12. c4 {[%clk 0:02:17.1]} 12...
Nc6 {[%clk 0:01:30.6]} 13. cxd5 {[%clk 0:01:57.9]} 13... Nc3 {[%clk 0:01:26.3]}
14. Qd2 {[%clk 0:01:41]} 14... Nxd5 {[%clk 0:01:22.3]} 15. c3 {[%clk 0:00:55.9]}
15... Bxf3 {[%clk 0:01:20.3]} 16. gxf3 {[%clk 0:00:56.8]} 16... Qh4 {[%clk
0:00:55.7]} 17. Bg3 {[%clk 0:00:49.6]} 17... Qxh3 {[%clk 0:00:55.8]} 18. c4
{[%clk 0:00:36.9]} 18... Nxd4 {[%clk 0:00:50.6]} 19. Be4 {[%clk 0:00:19.8]}
19... Nc3 {[%clk 0:00:50.2]} 20. Rfe1 {[%clk 0:00:08.5]} 20... Nxe4 {[%clk
0:00:47.9]} 21. Qxd4 {[%clk 0:00:08.6]} 21... Nxg3 {[%clk 0:00:48.1]} 22. fxg3
{[%clk 0:00:03.4]} 22... Qxg3+ {[%clk 0:00:49]} 23. Kf1 {[%clk 0:00:04.3]} 23...
Qxf3+ {[%clk 0:00:49]} 24. Qf2 {[%clk 0:00:05.2]} 24... Qxf2+ {[%clk 0:00:48.4]}
0-1

[Event "*** Titled Tuesday Blitz"]
[Site "Chess.com"]
[Date "2021.04.06"]
[Round "5"]
[White "MirMan90"]
[Black "Hard_Utilizator"]
[Result "1/2-1/2"]
[WhiteElo "2695"]
[BlackElo "2520"]
[TimeControl "180+1"]
[EndTime "10:56:39 PDT"]
[Termination "Game drawn by repetition"]

1. e4 {[%clk 0:02:57.8]} 1... c5 {[%clk 0:02:59.8]} 2. Nf3 {[%clk 0:02:57.2]}
2... e6 {[%clk 0:03:00.2]} 3. c3 {[%clk 0:02:57.2]} 3... d5 {[%clk 0:03:00]} 4.
exd5 {[%clk 0:02:57.5]} 4... Qxd5 {[%clk 0:02:59.3]} 5. d4 {[%clk 0:02:57.4]}
5... cxd4 {[%clk 0:02:59]} 6. cxd4 {[%clk 0:02:52.8]} 6... Nf6 {[%clk
0:02:59.1]} 7. Nc3 {[%clk 0:02:49.9]} 7... Qa5 {[%clk 0:02:58.4]} 8. Bd3 {[%clk
0:02:42.9]} 8... Be7 {[%clk 0:02:57.9]} 9. O-O {[%clk 0:02:42.6]} 9... O-O
{[%clk 0:02:57.9]} 10. Qe2 {[%clk 0:02:41.3]} 10... Nc6 {[%clk 0:02:57.8]} 11.
a3 {[%clk 0:02:35.1]} 11... a6 {[%clk 0:02:57.8]} 12. Be3 {[%clk 0:02:20.2]}
12... b5 {[%clk 0:02:54.7]} 13. Ne5 {[%clk 0:02:19.1]} 13... Bb7 {[%clk
0:02:51.2]} 14. Rad1 {[%clk 0:02:17.2]} 14... Rac8 {[%clk 0:02:45.8]} 15. Rfe1
{[%clk 0:02:15.8]} 15... Rfd8 {[%clk 0:02:45.2]} 16. Bb1 {[%clk 0:02:13.9]}
16... Bxa3 {[%clk 0:02:26.9]} 17. Bg5 {[%clk 0:01:42]} 17... Nxd4 {[%clk
0:01:55.3]} 18. Qe3 {[%clk 0:01:24.9]} 18... Bxb2 {[%clk 0:01:38.5]} 19. Bxf6
{[%clk 0:01:19.8]} 19... gxf6 {[%clk 0:01:38.7]} 20. Qh6 {[%clk 0:01:13.5]}
20... Nf5 {[%clk 0:01:18.9]} 21. Bxf5 {[%clk 0:00:47.7]} 21... exf5 {[%clk
0:01:19]} 22. Qxf6 {[%clk 0:00:38.8]} 22... Bxc3 {[%clk 0:01:02.9]} 23. Qxf7+
{[%clk 0:00:36.2]} 23... Kh8 {[%clk 0:01:02.9]} 24. Qf6+ {[%clk 0:00:35.8]}
24... Kg8 {[%clk 0:01:02.8]} 25. Qg5+ {[%clk 0:00:35.9]} 25... Kf8 {[%clk
0:01:00.1]} 26. Qxf5+ {[%clk 0:00:33.3]} 26... Kg8 {[%clk 0:00:59.8]} 27. Qe6+
{[%clk 0:00:24.1]} 27... Kh8 {[%clk 0:00:58.8]} 28. Qf6+ {[%clk 0:00:15.5]}
28... Kg8 {[%clk 0:00:58.8]} 29. Qf7+ {[%clk 0:00:04]} 29... Kh8 {[%clk
0:00:59.1]} 30. Qf6+ {[%clk 0:00:03.7]} 30... Kg8 {[%clk 0:00:59.4]} 31. Qf7+
{[%clk 0:00:04.6]} 31... Kh8 {[%clk 0:00:59.6]} 32. Qf6+ {[%clk 0:00:04.7]}
1/2-1/2

[Event "*** Titled Tuesday Blitz"]
[Site "Chess.com"]
[Date "2021.04.06"]
[Round "5"]
[White "Rish_97"]
[Black "profofchess"]
[Result "1-0"]
[WhiteElo "2692"]
[BlackElo "2511"]
[TimeControl "180+1"]
[EndTime "10:56:40 PDT"]
[Termination "Rish_97 won by checkmate"]

1. e4 {[%clk 0:03:00.9]} 1... e6 {[%clk 0:03:00.4]} 2. d4 {[%clk 0:03:00.5]}
2... d5 {[%clk 0:03:01]} 3. Nc3 {[%clk 0:03:01.1]} 3... Bb4 {[%clk 0:03:01]} 4.
exd5 {[%clk 0:02:59.7]} 4... exd5 {[%clk 0:03:01]} 5. Bd3 {[%clk 0:02:59.3]}
5... Nc6 {[%clk 0:03:01.3]} 6. Nf3 {[%clk 0:02:59.5]} 6... Bg4 {[%clk
0:02:44.2]} 7. O-O {[%clk 0:02:59.4]} 7... Nge7 {[%clk 0:02:42.8]} 8. a3 {[%clk
0:02:53.1]} 8... Bxc3 {[%clk 0:02:42.9]} 9. bxc3 {[%clk 0:02:52.8]} 9... Qd7
{[%clk 0:02:39.8]} 10. a4 {[%clk 0:02:51.2]} 10... Na5 {[%clk 0:01:47.8]} 11.
Re1 {[%clk 0:02:16.6]} 11... O-O-O {[%clk 0:01:45.2]} 12. h3 {[%clk 0:02:03.1]}
12... Bxf3 {[%clk 0:01:12.7]} 13. Qxf3 {[%clk 0:02:01.7]} 13... Kb8 {[%clk
0:01:13.6]} 14. Qxf7 {[%clk 0:01:50.7]} 14... Nec6 {[%clk 0:01:13.8]} 15. Qxd7
{[%clk 0:01:43.3]} 15... Rxd7 {[%clk 0:01:14.7]} 16. Bf4 {[%clk 0:01:37.4]}
16... Rf8 {[%clk 0:01:10.7]} 17. Bg3 {[%clk 0:01:33.8]} 17... g6 {[%clk
0:01:06.9]} 18. Re6 {[%clk 0:01:33.3]} 18... Nc4 {[%clk 0:01:02.1]} 19. Rae1
{[%clk 0:01:32.9]} 19... a6 {[%clk 0:00:52.5]} 20. h4 {[%clk 0:01:30.6]} 20...
Nb2 {[%clk 0:00:37.7]} 21. Bxa6 {[%clk 0:01:20]} 21... bxa6 {[%clk 0:00:25.7]}
22. Rb1 {[%clk 0:01:14.8]} 22... Na5 {[%clk 0:00:24.7]} 23. Rxb2+ {[%clk
0:01:13]} 23... Ka7 {[%clk 0:00:25.1]} 24. Rb1 {[%clk 0:00:57.3]} 24... Rff7
{[%clk 0:00:21.7]} 25. Re8 {[%clk 0:00:54.5]} 25... Rde7 {[%clk 0:00:19.4]} 26.
Rc8 {[%clk 0:00:52.5]} 26... Re2 {[%clk 0:00:17.3]} 27. Bxc7 {[%clk 0:00:44.3]}
27... Rfxf2 {[%clk 0:00:16.9]} 28. Bb8+ {[%clk 0:00:43.2]} 28... Ka8 {[%clk
0:00:17.1]} 29. Bd6+ {[%clk 0:00:40.3]} 29... Ka7 {[%clk 0:00:16.6]} 30. Bc5#
{[%clk 0:00:40.8]} 1-0

[Event "*** Titled Tuesday Blitz"]
[Site "Chess.com"]
[Date "2021.04.06"]
[Round "5"]
[White "StockholmMissile"]
[Black "tylityli"]
[Result "1-0"]
[WhiteElo "2581"]
[BlackElo "2333"]
[TimeControl "180+1"]
[EndTime "10:56:45 PDT"]
[Termination "StockholmMissile won on time"]

1. d4 {[%clk 0:03:00.9]} 1... Nf6 {[%clk 0:02:58.3]} 2. c4 {[%clk 0:03:00.8]}
2... e6 {[%clk 0:02:56.7]} 3. Nf3 {[%clk 0:03:00.9]} 3... Bb4+ {[%clk
0:02:55.8]} 4. Bd2 {[%clk 0:03:00.9]} 4... Qe7 {[%clk 0:02:55.6]} 5. g3 {[%clk
0:03:01]} 5... O-O {[%clk 0:02:55]} 6. Bg2 {[%clk 0:03:00.9]} 6... Nc6 {[%clk
0:02:55.7]} 7. Nc3 {[%clk 0:03:00.9]} 7... d6 {[%clk 0:02:54.8]} 8. O-O {[%clk
0:03:00.6]} 8... Bxc3 {[%clk 0:02:51.4]} 9. Bxc3 {[%clk 0:03:01.5]} 9... e5
{[%clk 0:02:51.1]} 10. dxe5 {[%clk 0:03:00.6]} 10... dxe5 {[%clk 0:02:49.7]} 11.
Qc2 {[%clk 0:03:00.2]} 11... Bg4 {[%clk 0:02:34.4]} 12. h3 {[%clk 0:02:57]}
12... Bh5 {[%clk 0:02:14]} 13. Nh4 {[%clk 0:02:56.3]} 13... Bg6 {[%clk 0:01:58]}
14. Nxg6 {[%clk 0:02:54.3]} 14... hxg6 {[%clk 0:01:58.9]} 15. b3 {[%clk
0:02:51.9]} 15... Rfe8 {[%clk 0:01:50.5]} 16. Rad1 {[%clk 0:02:49.6]} 16... e4
{[%clk 0:01:48.5]} 17. e3 {[%clk 0:02:35.6]} 17... a5 {[%clk 0:01:47.5]} 18. Rd2
{[%clk 0:02:35.2]} 18... a4 {[%clk 0:01:10.2]} 19. Rfd1 {[%clk 0:02:33.1]} 19...
axb3 {[%clk 0:01:09.6]} 20. axb3 {[%clk 0:02:34]} 20... Ra7 {[%clk 0:00:45.5]}
21. Qb1 {[%clk 0:02:22.2]} 21... Nb4 {[%clk 0:00:24.3]} 22. c5 {[%clk
0:01:23.9]} 22... Nd3 {[%clk 0:00:16.5]} 23. Bxf6 {[%clk 0:01:23.9]} 23... gxf6
{[%clk 0:00:12.3]} 24. Bxe4 {[%clk 0:01:23.8]} 24... Nxc5 {[%clk 0:00:11.9]} 25.
Bc2 {[%clk 0:01:08.4]} 25... Kg7 {[%clk 0:00:10.7]} 26. Rd4 {[%clk 0:01:07.8]}
26... Ne6 {[%clk 0:00:08.8]} 27. Rg4 {[%clk 0:01:07.2]} 27... Nf8 {[%clk
0:00:04.6]} 28. h4 {[%clk 0:01:04.2]} 28... Qc5 {[%clk 0:00:03.3]} 29. b4 {[%clk
0:01:01]} 29... Qe5 {[%clk 0:00:01.7]} 30. Qb3 {[%clk 0:00:53.1]} 1-0

[Event "*** Titled Tuesday Blitz"]
[Site "Chess.com"]
[Date "2021.04.06"]
[Round "5"]
[White "BeyondMadness"]
[Black "Eliwood44"]
[Result "0-1"]
[WhiteElo "2279"]
[BlackElo "2516"]
[TimeControl "180+1"]
[EndTime "10:56:46 PDT"]
[Termination "Eliwood44 won by resignation"]

1. d4 {[%clk 0:03:00.9]} 1... Nf6 {[%clk 0:02:59.5]} 2. c4 {[%clk 0:03:01]} 2...
e6 {[%clk 0:02:58.9]} 3. Nc3 {[%clk 0:03:00.2]} 3... d5 {[%clk 0:02:58.1]} 4.
cxd5 {[%clk 0:02:59.5]} 4... exd5 {[%clk 0:02:58.6]} 5. Bg5 {[%clk 0:03:00]}
5... c6 {[%clk 0:02:59.2]} 6. e3 {[%clk 0:02:59.6]} 6... Nbd7 {[%clk 0:02:59.8]}
7. Qc2 {[%clk 0:02:59.6]} 7... h6 {[%clk 0:02:59.9]} 8. Bh4 {[%clk 0:02:58.2]}
8... Be7 {[%clk 0:02:59.2]} 9. Bd3 {[%clk 0:02:57.4]} 9... Nh5 {[%clk
0:02:57.6]} 10. Bxe7 {[%clk 0:02:53.3]} 10... Qxe7 {[%clk 0:02:58.5]} 11. Nge2
{[%clk 0:02:53.1]} 11... Nb6 {[%clk 0:02:56.6]} 12. O-O {[%clk 0:02:49.8]} 12...
O-O {[%clk 0:02:55.4]} 13. Rae1 {[%clk 0:02:48.6]} 13... Bd7 {[%clk 0:02:48]}
14. Nc1 {[%clk 0:02:29.9]} 14... Nf6 {[%clk 0:02:45.7]} 15. f3 {[%clk
0:02:28.7]} 15... c5 {[%clk 0:02:44.7]} 16. Qf2 {[%clk 0:02:25.1]} 16... Rfe8
{[%clk 0:02:39.8]} 17. Bc2 {[%clk 0:02:12.1]} 17... cxd4 {[%clk 0:02:30.7]} 18.
exd4 {[%clk 0:02:11.4]} 18... Qb4 {[%clk 0:02:31]} 19. Nd3 {[%clk 0:02:07.2]}
19... Qf8 {[%clk 0:02:15.5]} 20. Ne5 {[%clk 0:02:04.8]} 20... Qb4 {[%clk
0:02:05.4]} 21. Nd3 {[%clk 0:01:54.9]} 21... Qd6 {[%clk 0:01:48.7]} 22. Ne5
{[%clk 0:01:53.8]} 22... Rac8 {[%clk 0:01:36.8]} 23. Bd3 {[%clk 0:01:47.3]}
23... Nc4 {[%clk 0:01:31.7]} 24. Bxc4 {[%clk 0:01:40.5]} 24... dxc4 {[%clk
0:01:31.3]} 25. Rd1 {[%clk 0:01:40.8]} 25... b5 {[%clk 0:01:28.4]} 26. Ne4
{[%clk 0:01:37.8]} 26... Nxe4 {[%clk 0:01:25.8]} 27. fxe4 {[%clk 0:01:38.7]}
27... f6 {[%clk 0:01:20.8]} 28. Nxd7 {[%clk 0:01:34.1]} 28... Qxd7 {[%clk
0:01:21.7]} 29. e5 {[%clk 0:01:29.2]} 29... fxe5 {[%clk 0:01:16.3]} 30. dxe5
{[%clk 0:01:27.7]} 30... Qe7 {[%clk 0:01:16.1]} 31. h3 {[%clk 0:01:16.3]} 31...
Rf8 {[%clk 0:01:15]} 32. Qg3 {[%clk 0:01:13.8]} 32... Rxf1+ {[%clk 0:01:09]} 33.
Rxf1 {[%clk 0:01:11.4]} 33... Re8 {[%clk 0:01:09.4]} 34. Re1 {[%clk 0:01:04]}
34... Qe6 {[%clk 0:01:05.3]} 35. Qe3 {[%clk 0:00:59]} 35... a6 {[%clk
0:01:00.9]} 36. Kh2 {[%clk 0:00:56.2]} 36... Rd8 {[%clk 0:00:58.4]} 37. Re2
{[%clk 0:00:50.2]} 37... Rd3 {[%clk 0:00:52.2]} 38. Qa7 {[%clk 0:00:48.8]} 38...
Qg6 {[%clk 0:00:44.6]} 39. e6 {[%clk 0:00:41.9]} 39... Qg3+ {[%clk 0:00:41.7]}
0-1

[Event "*** Titled Tuesday Blitz"]
[Site "Chess.com"]
[Date "2021.04.06"]
[Round "5"]
[White "Artyom_ChessMate"]
[Black "chessdiamant"]
[Result "1-0"]
[WhiteElo "2539"]
[BlackElo "2369"]
[TimeControl "180+1"]
[EndTime "10:56:48 PDT"]
[Termination "Artyom_ChessMate won by checkmate"]

1. e4 {[%clk 0:03:00.9]} 1... e6 {[%clk 0:02:59]} 2. d4 {[%clk 0:03:00.6]} 2...
d5 {[%clk 0:02:59.1]} 3. Bd3 {[%clk 0:02:59.3]} 3... Nf6 {[%clk 0:02:55.5]} 4.
e5 {[%clk 0:02:59.4]} 4... Nfd7 {[%clk 0:02:54.8]} 5. c3 {[%clk 0:03:00.3]} 5...
c5 {[%clk 0:02:54.5]} 6. Ne2 {[%clk 0:02:58.6]} 6... Nc6 {[%clk 0:02:54.5]} 7.
a3 {[%clk 0:02:58.1]} 7... cxd4 {[%clk 0:02:53.5]} 8. cxd4 {[%clk 0:02:55.3]}
8... f6 {[%clk 0:02:53.9]} 9. f4 {[%clk 0:02:54.9]} 9... fxe5 {[%clk 0:02:53.2]}
10. fxe5 {[%clk 0:02:55.8]} 10... Nxd4 {[%clk 0:02:52.6]} 11. Nxd4 {[%clk
0:02:23.9]} 11... Nxe5 {[%clk 0:02:51.6]} 12. Qh5+ {[%clk 0:02:21.6]} 12... Nf7
{[%clk 0:02:24.2]} 13. O-O {[%clk 0:02:20.3]} 13... g6 {[%clk 0:02:24]} 14. Qe2
{[%clk 0:02:10.4]} 14... Bc5 {[%clk 0:02:19.9]} 15. Be3 {[%clk 0:02:09.6]} 15...
O-O {[%clk 0:02:14]} 16. Nf3 {[%clk 0:02:00.2]} 16... Qb6 {[%clk 0:01:48.8]} 17.
Bxc5 {[%clk 0:01:53.7]} 17... Qxc5+ {[%clk 0:01:49.7]} 18. Kh1 {[%clk 0:01:54]}
18... Bd7 {[%clk 0:01:42.9]} 19. Nbd2 {[%clk 0:01:44.6]} 19... Qb6 {[%clk
0:01:08.2]} 20. b4 {[%clk 0:01:40.1]} 20... Rac8 {[%clk 0:01:03.5]} 21. Ne5
{[%clk 0:01:28.6]} 21... Nxe5 {[%clk 0:01:00.2]} 22. Qxe5 {[%clk 0:01:29.5]}
22... Rxf1+ {[%clk 0:00:46.3]} 23. Rxf1 {[%clk 0:01:30.4]} 23... Qd8 {[%clk
0:00:40.1]} 24. Nf3 {[%clk 0:01:20.6]} 24... Qe7 {[%clk 0:00:35.3]} 25. Nd4
{[%clk 0:01:18.1]} 25... a5 {[%clk 0:00:31.6]} 26. bxa5 {[%clk 0:01:08.5]} 26...
Rc3 {[%clk 0:00:25.4]} 27. Nf5 {[%clk 0:00:55.8]} 27... gxf5 {[%clk 0:00:19.3]}
28. Qxc3 {[%clk 0:00:55.4]} 28... e5 {[%clk 0:00:18]} 29. Bxf5 {[%clk
0:00:54.3]} 29... Qf6 {[%clk 0:00:17.5]} 30. Qg3+ {[%clk 0:00:54]} 30... Kh8
{[%clk 0:00:14.6]} 31. Qh3 {[%clk 0:00:46.7]} 31... Bb5 {[%clk 0:00:13.2]} 32.
Qxh7# {[%clk 0:00:46.2]} 1-0

[Event "*** Titled Tuesday Blitz"]
[Site "Chess.com"]
[Date "2021.04.06"]
[Round "5"]
[White "c_r_e_e_p_e_r"]
[Black "ehrenfeld"]
[Result "0-1"]
[WhiteElo "2369"]
[BlackElo "2536"]
[TimeControl "180+1"]
[EndTime "10:56:53 PDT"]
[Termination "ehrenfeld won by checkmate"]

1. e4 {[%clk 0:03:00.3]} 1... e5 {[%clk 0:02:58.5]} 2. Nc3 {[%clk 0:02:59.7]}
2... Nf6 {[%clk 0:02:57.8]} 3. g3 {[%clk 0:02:59.7]} 3... Bc5 {[%clk 0:02:56.9]}
4. Bg2 {[%clk 0:03:00]} 4... d6 {[%clk 0:02:56.8]} 5. Nge2 {[%clk 0:02:58.1]}
5... Nc6 {[%clk 0:02:50.4]} 6. O-O {[%clk 0:02:57.7]} 6... a6 {[%clk 0:02:49.3]}
7. h3 {[%clk 0:02:57.9]} 7... Nd4 {[%clk 0:02:39.5]} 8. d3 {[%clk 0:02:56.7]}
8... c6 {[%clk 0:02:31.2]} 9. Kh2 {[%clk 0:02:54]} 9... h5 {[%clk 0:02:24.5]}
10. Nxd4 {[%clk 0:02:31.3]} 10... Bxd4 {[%clk 0:02:22.7]} 11. Qe2 {[%clk
0:02:20.4]} 11... Be6 {[%clk 0:01:46.3]} 12. f4 {[%clk 0:02:17.7]} 12... Ng4+
{[%clk 0:01:42.6]} 13. Kh1 {[%clk 0:02:18]} 13... Bd7 {[%clk 0:01:34.3]} 14. Nd1
{[%clk 0:02:12.4]} 14... h4 {[%clk 0:01:30.9]} 15. Bf3 {[%clk 0:01:56.9]} 15...
hxg3 {[%clk 0:01:17]} 16. Bxg4 {[%clk 0:01:48.3]} 16... Rxh3+ {[%clk 0:01:08.9]}
17. Bxh3 {[%clk 0:00:56.7]} 17... Bxh3 {[%clk 0:01:08.4]} 18. Be3 {[%clk
0:00:17.6]} 18... g2+ {[%clk 0:01:03.1]} 19. Qxg2 {[%clk 0:00:17.9]} 19... Bxg2+
{[%clk 0:01:02.4]} 20. Kxg2 {[%clk 0:00:18.8]} 20... Qh4 {[%clk 0:00:53.7]} 21.
Rf3 {[%clk 0:00:13.3]} 21... Qg4+ {[%clk 0:00:48.7]} 22. Rg3 {[%clk 0:00:13.4]}
22... Qe2+ {[%clk 0:00:48.2]} 23. Bf2 {[%clk 0:00:10.2]} 23... Qxc2 {[%clk
0:00:39.7]} 24. Rxg7 {[%clk 0:00:07.3]} 24... O-O-O {[%clk 0:00:39.2]} 25. f5
{[%clk 0:00:06.4]} 25... Rh8 {[%clk 0:00:36.3]} 26. Rxf7 {[%clk 0:00:03.6]}
26... Qxd3 {[%clk 0:00:35.2]} 27. Rg7 {[%clk 0:00:01.8]} 27... Qh3+ {[%clk
0:00:34.8]} 28. Kg1 {[%clk 0:00:02.2]} 28... Qh1# {[%clk 0:00:34.5]} 0-1